fUSD/lending_fUSD_20240929
["ID","MTS","AMOUNT","RATE_DAILY","PERIOD"]
[339479070,1727628653257,-500.0,0.00010996,2]
[339479071,1727628653266,-500.0,0.00010996,2]
[339479072,1727628653276,-500.0,0.00010996,2]
[339479073,1727628653285,-500.0,0.00010996,2]
[339479074,1727628653294,-500.0,0.00010996,2]
[339479075,1727628653303,-500.0,0.00010996,2]
[339479076,1727628653312,-500.0,0.00010996,2]
[339479077,1727628653321,-500.0,0.00010996,2]
[339479078,1727628653331,-5334.7,0.00010996,2]
[339479079,1727628653340,-1540.5,0.00010996,2]
[339479080,1727628653349,-500.0,0.00010996,2]
[339479081,1727628653358,-1737.19,0.00010996,2]
[339479082,1727628653368,-500.0,0.00010996,2]
[339479083,1727628653377,-500.0,0.00010996,2]
[339479084,1727628653386,-500.0,0.00010996,2]
[339479085,1727628653395,-2096.81,0.00010996,2]
[339479086,1727628653404,-500.0,0.00010996,2]
[339479087,1727628653413,-2046.36,0.00010996,2]
[339479088,1727628653423,-500.0,0.00010996,2]
[339479089,1727628653432,-500.0,0.00010996,2]
[339479090,1727628653441,-500.0,0.00010996,2]
[339479091,1727628653450,-500.0,0.00010996,2]
[339479092,1727628653461,-500.0,0.00010996,2]
[339479093,1727628653470,-500.0,0.00010996,2]
[339479094,1727628653481,-1511.85,0.00010996,2]
[339479095,1727628653490,-500.0,0.00010996,2]
[339479096,1727628653500,-3123.06,0.00010996,2]
[339479097,1727628653510,-837.22,0.00010996,2]
[339479098,1727628653520,-500.0,0.00010996,2]
[339479099,1727628653529,-500.0,0.00010996,2]
[339479100,1727628653539,-500.0,0.00010996,2]
[339479101,1727628653548,-500.0,0.00010996,2]
[339479102,1727628653558,-500.0,0.00010996,2]
[339479103,1727628653570,-6445.88,0.00010996,2]
[339479104,1727628653580,-944.41,0.00010996,2]
[339479105,1727628653590,-500.0,0.00010996,2]
[339479106,1727628653600,-5150.0,0.00010996,2]
[339479107,1727628653610,-500.0,0.00010996,2]
[339479108,1727628653620,-500.0,0.00010996,2]
[339479109,1727628653630,-1443.63,0.00010996,2]
[339479110,1727628653639,-846.14,0.00010996,2]
[339479111,1727628653649,-1250.45,0.00010996,2]
[339479112,1727628653659,-1365.98,0.00010996,2]
[339479113,1727628653669,-3067.77,0.00010996,2]
[339479114,1727628653678,-2555.11,0.00010996,2]
[339479115,1727628653687,-500.0,0.00010996,2]
[339479116,1727628653696,-1891.78,0.00010996,2]
[339479117,1727628653706,-500.0,0.00010996,2]
[339479118,1727628653715,-1484.27,0.00010996,2]
[339479119,1727628653726,-2424.05,0.00010996,2]
[339479120,1727628653737,-975.44,0.00010996,2]
[339479121,1727628653747,-1491.47,0.00010996,2]
[339479122,1727628653757,-500.0,0.00010996,2]
[339479123,1727628653767,-500.0,0.00010996,2]
[339479124,1727628653777,-269.87674976,0.00010996,2]
[339479125,1727628653787,-500.0,0.00010996,2]
[339479126,1727628653799,-500.0,0.00010996,2]
[339479127,1727628653810,-500.0,0.00010996,2]
[339479128,1727628653820,-1956.69,0.00010996,2]
[339479129,1727628653829,-2885.71,0.00010996,2]
[339479130,1727628653838,-2929.78,0.00010996,2]
[339479131,1727628653847,-1887.43,0.00010996,2]
[339479132,1727628653858,-945.83,0.00010996,2]
[339479133,1727628653867,-2236.45,0.00010996,2]
[339479134,1727628653877,-2858.87,0.00010996,2]
[339479135,1727628653886,-2417.39,0.00010996,2]
[339479136,1727628653895,-500.0,0.00010996,2]
[339479137,1727628653904,-500.0,0.00010996,2]
[339479138,1727628653914,-500.0,0.00010996,2]
[339479139,1727628653924,-500.0,0.00010996,2]
[339479140,1727628653934,-804.06,0.00010996,2]
[339479141,1727628653944,-500.0,0.00010996,2]
[339479142,1727628653954,-2789.63,0.00010996,2]
[339479143,1727628653963,-1486.99,0.00010996,2]
[339479144,1727628653972,-500.0,0.00010996,2]
[339479145,1727628653983,-500.0,0.00010996,2]
[339479146,1727628653994,-1259.94,0.00010996,2]
[339479147,1727628654004,-500.0,0.00010996,2]
[339479148,1727628654014,-500.0,0.00010996,2]
[339479149,1727628654024,-555.52,0.00010996,2]
[339479150,1727628654033,-636.51,0.00010996,2]
[339479151,1727628654042,-500.0,0.00010996,2]
[339479152,1727628654051,-582.4,0.00010996,2]
[339479153,1727628654060,-500.0,0.00010996,2]
[339479154,1727628654070,-673.23,0.00010996,2]
[339479155,1727628654080,-500.0,0.00010996,2]
[339479156,1727628654091,-2856.77,0.00010996,2]
[339479157,1727628654101,-968.22,0.00010996,2]
[339479158,1727628654111,-953.29,0.00010996,2]
[339479159,1727628654120,-500.0,0.00010996,2]
[339479160,1727628654129,-668.63,0.00010996,2]
[339479161,1727628654139,-1684.68,0.00010996,2]
[339479162,1727628654149,-733.33,0.00010996,2]
[339479163,1727628654159,-500.0,0.00010996,2]
[339479164,1727628654171,-500.0,0.00010996,2]
[339479165,1727628654181,-514.98417646,0.00010996,2]
[339479166,1727628654191,-827.31,0.00010996,2]
[339479167,1727628654202,-501.78739866,0.00010996,2]
[339479168,1727628654213,-602.61,0.00010996,2]
[339479169,1727628654223,-1325.37,0.00010996,2]
[339479170,1727628654232,-500.0,0.00010996,2]
[339479171,1727628654241,-504.66,0.00010996,2]
[339479172,1727628654249,-2764.08,0.00010996,2]
[339479173,1727628654259,-500.0,0.00010996,2]
[339479174,1727628654268,-2843.77,0.00010996,2]
[339479175,1727628654277,-500.0,0.00010996,2]
[339479176,1727628654286,-500.0,0.00010996,2]
[339479177,1727628654295,-500.0,0.00010996,2]
[339479178,1727628654304,-500.0,0.00010996,2]
[339479179,1727628654313,-3788.3,0.00010996,2]
[339479180,1727628654322,-500.0,0.00010996,2]
[339479181,1727628654331,-500.0,0.00010996,2]
[339479182,1727628654340,-2874.05,0.00010996,2]
[339479183,1727628654349,-500.0,0.00010996,2]
[339479184,1727628654358,-873.74,0.00010996,2]
[339479185,1727628654368,-1968.88,0.00010996,2]
[339479186,1727628654377,-500.0,0.00010997,2]
[339479187,1727628654387,-276.9012876,0.00010997,2]
[339479188,1727628654396,-3493.4638565,0.00010997,2]
[339479189,1727628654405,-286.5869498,0.00010997,2]
[339479190,1727628654414,-500.0,0.00010997,2]
[339479191,1727628654423,-634.9329597,0.00010997,2]
[339479192,1727628654432,-500.0,0.00010997,2]
[339479193,1727628654441,-254.30806308,0.00010997,2]
[339479194,1727628654450,-501.27107782,0.00010997,2]
[339479195,1727628654459,-500.0,0.00010997,2]
[339479196,1727628654468,-500.0,0.00010997,2]
[339479197,1727628654477,-525.34217049,0.00010997,2]
[339479198,1727628654486,-500.0,0.00010997,2]
[339479199,1727628654495,-500.0,0.00010997,2]
[339479200,1727628654504,-500.0,0.00010997,2]
[339479201,1727628654513,-500.0,0.00010997,2]
[339479202,1727628654523,-500.0,0.00010997,2]
[339479203,1727628654532,-500.0,0.00010997,2]
[339479204,1727628654541,-500.0,0.00010997,2]
[339479205,1727628654550,-500.0,0.00010997,2]
[339479206,1727628654559,-3066.5022062,0.00010997,2]
[339479207,1727628654568,-500.0,0.00010997,2]
[339479208,1727628654577,-500.0,0.00010997,2]
[339479209,1727628654586,-677.49,0.00010997,2]
[339479210,1727628654595,-677.49,0.00010997,2]
[339479211,1727628654605,-1029.76,0.00010997,2]
[339479212,1727628654614,-1029.76,0.00010997,2]
[339479213,1727628654623,-500.0,0.00010997,2]
[339479214,1727628654632,-500.0,0.00010997,2]
[339479215,1727628654641,-500.0,0.00010997,2]
[339479216,1727628654649,-500.0,0.00010997,2]
[339479217,1727628654658,-500.0,0.00010997,2]
[339479218,1727628654668,-500.0,0.00010997,2]
[339479219,1727628654677,-500.0,0.00010997,2]
[339479220,1727628654686,-500.0,0.00010997,2]
[339479221,1727628654695,-500.0,0.00010997,2]
[339479222,1727628654704,-521.35915734,0.00010997,2]
[339479223,1727628654714,-500.0,0.00010997,2]
[339479224,1727628654723,-500.0,0.00010997,2]
[339479225,1727628654736,-500.0,0.00010997,2]
[339479226,1727628654745,-500.0,0.00010997,2]
[339479227,1727628654755,-20293.7477014,0.00010997,2]
[339479228,1727628654764,-500.0,0.00010997,2]
[339479229,1727628654775,-357.08038397,0.00010997,2]
[339479230,1727628654785,-500.0,0.00010997,2]
[339479231,1727628654795,-500.0,0.00010997,2]
[339479232,1727628654950,-500.0,0.00010997,2]
[339479233,1727628654961,-248.73542896,0.00010997,2]
[339479234,1727628654970,-500.0,0.00010997,2]
[339479235,1727628654979,-500.0,0.00010997,2]
[339479236,1727628654988,-882.26,0.00010997,2]
[339479237,1727628654997,-882.26,0.00010997,2]
[339479238,1727628655006,-500.0,0.00010997,2]
[339479239,1727628655015,-500.0,0.00010997,2]
[339479240,1727628655024,-529.98,0.00010997,2]
[339479241,1727628655033,-529.98,0.00010997,2]
[339479242,1727628655042,-500.0,0.00010997,2]
[339479243,1727628655051,-500.0,0.00010997,2]
[339479244,1727628655060,-500.0,0.00010997,2]
[339479245,1727628655070,-500.0,0.00010997,2]
[339479246,1727628655079,-500.0,0.00010997,2]
[339479247,1727628655089,-500.0,0.00010997,2]
[339479248,1727628655100,-500.0,0.00010997,2]
[339479249,1727628655111,-500.0,0.00010997,2]
[339479250,1727628655122,-500.0,0.00010997,2]
[339479251,1727628655132,-500.0,0.00010997,2]
[339479252,1727628655142,-500.0,0.00010997,2]
[339479253,1727628655151,-500.0,0.00010997,2]
[339479254,1727628655160,-500.0,0.00010997,2]
[339479255,1727628655170,-500.0,0.00010997,2]
[339479256,1727628655179,-546.75,0.00010997,2]
[339479257,1727628655188,-546.75,0.00010997,2]
[339479258,1727628655197,-500.0,0.00010997,2]
[339479259,1727628655207,-500.0,0.00010997,2]
[339479260,1727628655216,-500.0,0.00010997,2]
[339479261,1727628655224,-500.0,0.00010997,2]
[339479262,1727628655234,-500.0,0.00010997,2]
[339479263,1727628655243,-550.60408528,0.00010997,2]
[339479264,1727628655254,-760.11,0.00010997,2]
[339479265,1727628655263,-760.11,0.00010997,2]
[339479266,1727628655272,-500.0,0.00010997,2]
[339479267,1727628655281,-500.0,0.00010997,2]
[339479268,1727628655290,-500.0,0.00010997,2]
[339479269,1727628655299,-500.0,0.00010997,2]
[339479270,1727628655308,-500.0,0.00010997,2]
[339479271,1727628655317,-500.0,0.00010997,2]
[339479272,1727628655326,-500.0,0.00010997,2]
[339479273,1727628655335,-927.24,0.00010997,2]
[339479274,1727628655344,-927.24,0.00010997,2]
[339479275,1727628655353,-500.0,0.00010997,2]
[339479276,1727628655363,-500.0,0.00010997,2]
[339479277,1727628655372,-500.0,0.00010997,2]
[339479278,1727628655383,-500.0,0.00010997,2]
[339479279,1727628655395,-500.0,0.00010997,2]
[339479280,1727628655404,-500.0,0.00010997,2]
[339479281,1727628655415,-500.0,0.00010997,2]
[339479282,1727628655426,-501.78387704,0.00010997,2]
[339479283,1727628655436,-500.0,0.00010997,2]
[339479284,1727628655447,-500.0,0.00010997,2]
[339479285,1727628655457,-500.0,0.00010997,2]
[339479286,1727628655467,-500.0,0.00010997,2]
[339479287,1727628655476,-500.0,0.00010997,2]
[339479288,1727628655486,-500.0,0.00010997,2]
[339479289,1727628655495,-500.0,0.00010997,2]
[339479290,1727628655504,-627.08,0.00010997,2]
[339479291,1727628655514,-627.08,0.00010997,2]
[339479292,1727628655523,-500.0,0.00010997,2]
[339479293,1727628655533,-501.0280111,0.00010997,2]
[339479294,1727628655543,-518.4,0.00010997,2]
[339479295,1727628655552,-518.4,0.00010997,2]
[339479296,1727628655561,-500.0,0.00010997,2]
[339479297,1727628655572,-500.0,0.00010997,2]
[339479298,1727628655581,-500.0,0.00010997,2]
[339479299,1727628655591,-500.0,0.00010997,2]
[339479300,1727628655600,-500.0,0.00010997,2]
[339479301,1727628655609,-500.0,0.00010997,2]
[339479302,1727628655618,-500.0,0.00010997,2]
[339479303,1727628655627,-500.0,0.00010997,2]
[339479304,1727628655637,-500.0,0.00010997,2]
[339479305,1727628655646,-500.0,0.00010997,2]
[339479306,1727628655656,-500.0,0.00010997,2]
[339479307,1727628655665,-500.0,0.00010997,2]
[339479308,1727628655675,-637.00861719,0.00010997,2]
[339479309,1727628655684,-1191.49,0.00010997,2]
[339479310,1727628655694,-500.0,0.00010997,2]
[339479311,1727628655704,-500.0,0.00010997,2]
[339479312,1727628655713,-562.85,0.00010997,2]
[339479313,1727628655723,-562.85,0.00010997,2]
[339479314,1727628655736,-500.0,0.00010997,2]
[339479315,1727628655745,-500.0,0.00010997,2]
[339479316,1727628655755,-500.0,0.00010997,2]
[339479317,1727628655764,-500.0,0.00010997,2]
[339479318,1727628655775,-500.0,0.00010997,2]
[339479319,1727628655784,-500.0,0.00010997,2]
[339479320,1727628655793,-500.0,0.00010997,2]
[339479321,1727628655803,-500.0,0.00010997,2]
[339479322,1727628655811,-500.0,0.00010997,2]
[339479323,1727628655821,-500.0,0.00010997,2]
[339479324,1727628655830,-500.0,0.00010997,2]
[339479325,1727628655839,-500.0,0.00010997,2]
[339479326,1727628655849,-5334.7,0.00010997,2]
[339479327,1727628655857,-1540.5,0.00010997,2]
[339479328,1727628655866,-500.0,0.00010997,2]
[339479329,1727628655876,-1737.19,0.00010997,2]
[339479330,1727628655885,-649.70455867,0.00010997,2]
[339479331,1727628655894,-500.0,0.00010997,2]
[339479332,1727628655903,-500.0,0.00010997,2]
[339479333,1727628655912,-500.0,0.00010997,2]
[339479334,1727628655921,-500.0,0.00010997,2]
[339479335,1727628655930,-307.32,0.00010997,2]
[339479336,1727628655939,-500.0,0.00010997,2]
[339479337,1727628655948,-2096.81,0.00010997,2]
[339479338,1727628655958,-522.71,0.00010997,2]
[339479339,1727628655967,-522.71,0.00010997,2]
[339479340,1727628655976,-500.0,0.00010997,2]
[339479341,1727628655985,-2046.36,0.00010997,2]
[339479342,1727628655995,-500.0,0.00010997,2]
[339479343,1727628656006,-500.0,0.00010997,2]
[339479344,1727628656017,-500.0,0.00010997,2]
[339479345,1727628656027,-500.0,0.00010997,2]
[339479346,1727628656036,-500.0,0.00010997,2]
[339479347,1727628656045,-888.78,0.00010997,2]
[339479348,1727628656054,-888.78,0.00010997,2]
[339479349,1727628656063,-500.46463344,0.00010997,2]
[339479350,1727628656072,-500.0,0.00010997,2]
[339479351,1727628656081,-500.0,0.00010997,2]
[339479352,1727628656090,-1511.85,0.00010997,2]
[339479353,1727628656099,-500.0,0.00010997,2]
[339479354,1727628656108,-500.0,0.00010997,2]
[339479355,1727628656117,-500.0,0.00010997,2]
[339479356,1727628656126,-3123.06,0.00010997,2]
[339479357,1727628656135,-837.22,0.00010997,2]
[339479358,1727628656145,-500.0,0.00010997,2]
[339479359,1727628656154,-500.0,0.00010997,2]
[339479360,1727628656163,-500.0,0.00010997,2]
[339479361,1727628656172,-500.0,0.00010997,2]
[339479362,1727628656182,-500.0,0.00010997,2]
[339479363,1727628656191,-6445.88,0.00010997,2]
[339479364,1727628656200,-944.41,0.00010997,2]
[339479365,1727628656213,-500.0,0.00010997,2]
[339479366,1727628656222,-5150.0,0.00010997,2]
[339479367,1727628656231,-500.0,0.00010997,2]
[339479368,1727628656240,-500.0,0.00010997,2]
[339479369,1727628656249,-1443.63,0.00010997,2]
[339479370,1727628656258,-846.14,0.00010997,2]
[339479371,1727628656268,-500.0,0.00010997,2]
[339479372,1727628656277,-500.0,0.00010997,2]
[339479373,1727628656286,-1250.45,0.00010997,2]
[339479374,1727628656296,-500.0,0.00010997,2]
[339479375,1727628656305,-500.0,0.00010997,2]
[339479376,1727628656314,-1365.98,0.00010997,2]
[339479377,1727628656323,-3067.77,0.00010997,2]
[339479378,1727628656332,-500.0,0.00010997,2]
[339479379,1727628656341,-500.0,0.00010997,2]
[339479380,1727628656350,-836.7,0.00010997,2]
[339479381,1727628656359,-836.7,0.00010997,2]
[339479382,1727628656368,-500.0,0.00010997,2]
[339479383,1727628656377,-500.0,0.00010997,2]
[339479384,1727628656386,-2555.11,0.00010997,2]
[339479385,1727628656396,-267.13592096,0.00010997,2]
[339479386,1727628656405,-649.07,0.00010997,2]
[339479387,1727628656415,-649.07,0.00010997,2]
[339479388,1727628656423,-1891.78,0.00010997,2]
[339479389,1727628656433,-500.0,0.00010997,2]
[339479390,1727628656442,-1484.27,0.00010997,2]
[339479391,1727628656451,-500.0,0.00010997,2]
[339479392,1727628656462,-500.0,0.00010997,2]
[339479393,1727628656472,-2424.05,0.00010997,2]
[339479394,1727628656480,-975.44,0.00010997,2]
[339479395,1727628656490,-1351.71,0.00010997,2]
[339479396,1727628656499,-1351.71,0.00010997,2]
[339479397,1727628656508,-1491.47,0.00010997,2]
[339479398,1727628656517,-500.0,0.00010997,2]
[339479399,1727628656527,-2173.37,0.00010997,2]
[339479400,1727628656536,-2173.37,0.00010997,2]
[339479401,1727628656546,-500.0,0.00010997,2]
[339479402,1727628656555,-500.0,0.00010997,2]
[339479403,1727628656564,-500.0,0.00010997,2]
[339479404,1727628656574,-536.83101963,0.00010997,2]
[339479405,1727628656583,-500.0,0.00010997,2]
[339479406,1727628656592,-500.0,0.00010997,2]
[339479407,1727628656602,-500.0,0.00010997,2]
[339479408,1727628656611,-500.0,0.00010997,2]
[339479409,1727628656620,-500.0,0.00010997,2]
[339479410,1727628656629,-2208.49,0.00010997,2]
[339479411,1727628656638,-2208.49,0.00010997,2]
[339479412,1727628656647,-500.0,0.00010997,2]
[339479413,1727628656656,-500.0,0.00010997,2]
[339479414,1727628656666,-500.0,0.00010997,2]
[339479415,1727628656675,-501.17217434,0.00010997,2]
[339479416,1727628656684,-500.0,0.00010997,2]
[339479417,1727628656693,-501.33197366,0.00010997,2]
[339479418,1727628656702,-1956.69,0.00010997,2]
[339479419,1727628656713,-500.0,0.00010997,2]
[339479420,1727628656723,-500.0,0.00010997,2]
[339479421,1727628656736,-500.0,0.00010997,2]
[339479422,1727628656745,-500.0,0.00010997,2]
[339479423,1727628656754,-605.25,0.00010997,2]
[339479424,1727628656763,-605.25,0.00010997,2]
[339479425,1727628656774,-2885.71,0.00010997,2]
[339479426,1727628656783,-1240.56,0.00010997,2]
[339479427,1727628656792,-1240.56,0.00010997,2]
[339479428,1727628656801,-2929.78,0.00010997,2]
[339479429,1727628656811,-793.78,0.00010997,2]
[339479430,1727628656820,-793.78,0.00010997,2]
[339479431,1727628656829,-500.0,0.00010997,2]
[339479432,1727628656839,-500.0,0.00010997,2]
[339479433,1727628656848,-1887.43,0.00010997,2]
[339479434,1727628656857,-500.0,0.00010997,2]
[339479435,1727628656866,-500.0,0.00010997,2]
[339479436,1727628656875,-500.0,0.00010997,2]
[339479437,1727628656884,-500.0,0.00010997,2]
[339479438,1727628656893,-500.0,0.00010997,2]
[339479439,1727628656902,-500.0,0.00010997,2]
[339479440,1727628656911,-945.83,0.00010997,2]
[339479441,1727628656920,-500.0,0.00010997,2]
[339479442,1727628656929,-500.0,0.00010997,2]
[339479443,1727628656939,-500.0,0.00010997,2]
[339479444,1727628656947,-500.0,0.00010997,2]
[339479445,1727628656957,-1045.38,0.00010997,2]
[339479446,1727628656967,-1045.38,0.00010997,2]
[339479447,1727628656976,-2236.45,0.00010997,2]
[339479448,1727628656985,-941.15,0.00010997,2]
[339479449,1727628656994,-941.15,0.00010997,2]
[339479450,1727628657003,-500.0,0.00010997,2]
[339479451,1727628657012,-500.0,0.00010997,2]
[339479452,1727628657022,-500.0,0.00010997,2]
[339479453,1727628657031,-500.0,0.00010997,2]
[339479454,1727628657040,-801.5,0.00010997,2]
[339479455,1727628657050,-801.5,0.00010997,2]
[339479456,1727628657059,-500.0,0.00010997,2]
[339479457,1727628657068,-500.0,0.00010997,2]
[339479458,1727628657077,-2858.87,0.00010997,2]
[339479459,1727628657086,-2417.39,0.00010997,2]
[339479460,1727628657095,-2045.76,0.00010997,2]
[339479461,1727628657103,-2045.76,0.00010997,2]
[339479462,1727628657112,-500.0,0.00010997,2]
[339479463,1727628657122,-500.0,0.00010997,2]
[339479464,1727628657131,-500.0,0.00010997,2]
[339479465,1727628657140,-500.0,0.00010997,2]
[339479466,1727628657149,-500.0,0.00010997,2]
[339479467,1727628657159,-500.0,0.00010997,2]
[339479468,1727628657168,-500.0,0.00010997,2]
[339479469,1727628657177,-500.0,0.00010997,2]
[339479470,1727628657186,-1708.8,0.00010997,2]
[339479471,1727628657195,-500.0,0.00010997,2]
[339479472,1727628657204,-500.0,0.00010997,2]
[339479473,1727628657214,-1708.8,0.00010997,2]
[339479474,1727628657223,-500.0,0.00010997,2]
[339479475,1727628657231,-526.6,0.00010997,2]
[339479476,1727628657241,-526.6,0.00010997,2]
[339479477,1727628657250,-500.0,0.00010997,2]
[339479478,1727628657259,-500.0,0.00010997,2]
[339479479,1727628657268,-500.0,0.00010997,2]
[339479480,1727628657277,-500.0,0.00010997,2]
[339479481,1727628657286,-500.0,0.00010997,2]
[339479482,1727628657295,-804.06,0.00010997,2]
[339479483,1727628657304,-500.0,0.00010997,2]
[339479484,1727628657312,-500.0,0.00010997,2]
[339479485,1727628657321,-500.0,0.00010997,2]
[339479486,1727628657330,-1906.71,0.00010997,2]
[339479487,1727628657339,-500.0,0.00010997,2]
[339479488,1727628657348,-1906.71,0.00010997,2]
[339479489,1727628657357,-500.0,0.00010997,2]
[339479490,1727628657366,-500.0,0.00010997,2]
[339479491,1727628657375,-500.0,0.00010997,2]
[339479492,1727628657385,-2789.63,0.00010997,2]
[339479493,1727628657394,-836.47,0.00010997,2]
[339479494,1727628657403,-836.47,0.00010997,2]
[339479495,1727628657412,-500.0,0.00010997,2]
[339479496,1727628657420,-500.0,0.00010997,2]
[339479497,1727628657430,-500.0,0.00010997,2]
[339479498,1727628657439,-500.0,0.00010997,2]
[339479499,1727628657448,-500.0,0.00010997,2]
[339479500,1727628657457,-1486.99,0.00010997,2]
[339479501,1727628657467,-500.0,0.00010997,2]
[339479502,1727628657477,-625.9,0.00010997,2]
[339479503,1727628657486,-500.0,0.00010997,2]
[339479504,1727628657495,-625.9,0.00010997,2]
[339479505,1727628657505,-500.0,0.00010997,2]
[339479506,1727628657514,-518.7561666,0.00010997,2]
[339479507,1727628657522,-500.0,0.00010997,2]
[339479508,1727628657531,-500.0,0.00010997,2]
[339479509,1727628657540,-500.0,0.00010997,2]
[339479510,1727628657549,-500.0,0.00010997,2]
[339479511,1727628657558,-1259.94,0.00010997,2]
[339479512,1727628657567,-500.0,0.00010997,2]
[339479513,1727628657576,-500.0,0.00010997,2]
[339479514,1727628657585,-500.0,0.00010997,2]
[339479515,1727628657594,-500.0,0.00010997,2]
[339479516,1727628657603,-500.0,0.00010997,2]
[339479517,1727628657612,-500.0,0.00010997,2]
[339479518,1727628657621,-500.0,0.00010997,2]
[339479519,1727628657631,-500.0,0.00010997,2]
[339479520,1727628657640,-500.0,0.00010997,2]
[339479521,1727628657649,-500.0,0.00010997,2]
[339479522,1727628657658,-635.94404901,0.00010997,2]
[339479523,1727628657667,-724.83,0.00010997,2]
[339479524,1727628657676,-724.83,0.00010997,2]
[339479525,1727628657685,-1410.68,0.00010997,2]
[339479526,1727628657694,-1410.68,0.00010997,2]
[339479527,1727628657703,-555.52,0.00010997,2]
[339479528,1727628657713,-555.52,0.00010997,2]
[339479529,1727628657722,-500.0,0.00010997,2]
[339479530,1727628657734,-555.52,0.00010997,2]
[339479531,1727628657743,-500.0,0.00010997,2]
[339479532,1727628657752,-555.52,0.00010997,2]
[339479533,1727628657762,-500.0,0.00010997,2]
[339479534,1727628657771,-582.4,0.00010997,2]
[339479535,1727628657781,-582.4,0.00010997,2]
[339479536,1727628657790,-582.4,0.00010997,2]
[339479537,1727628657800,-582.4,0.00010997,2]
[339479538,1727628657810,-500.0,0.00010997,2]
[339479539,1727628657819,-500.0,0.00010997,2]
[339479540,1727628657828,-500.0,0.00010997,2]
[339479541,1727628657838,-673.23,0.00010997,2]
[339479542,1727628657848,-500.0,0.00010997,2]
[339479543,1727628657858,-500.0,0.00010997,2]
[339479544,1727628657868,-226.46222608,0.00010997,2]
[339479545,1727628657877,-500.0,0.00010997,2]
[339479546,1727628657887,-2856.77,0.00010997,2]
[339479547,1727628657896,-500.0,0.00010997,2]
[339479548,1727628657905,-968.22,0.00010997,2]
[339479549,1727628657914,-630.95,0.00010997,2]
[339479550,1727628658060,-968.22,0.00010997,2]
[339479551,1727628658070,-630.95,0.00010997,2]
[339479552,1727628658080,-968.22,0.00010997,2]
[339479553,1727628658089,-968.22,0.00010997,2]
[339479554,1727628658098,-843.48,0.00010997,2]
[339479555,1727628658107,-843.48,0.00010997,2]
[339479556,1727628658116,-953.29,0.00010997,2]
[339479557,1727628658125,-500.0,0.00010997,2]
[339479558,1727628658134,-574.02002872,0.00010997,2]
[339479559,1727628658143,-725.73,0.00010997,2]
[339479560,1727628658153,-725.73,0.00010997,2]
[339479561,1727628658162,-668.63,0.00010997,2]
[339479562,1727628658171,-1684.68,0.00010997,2]
[339479563,1727628658179,-668.63,0.00010997,2]
[339479564,1727628658189,-668.63,0.00010997,2]
[339479565,1727628658198,-733.33,0.00010997,2]
[339479566,1727628658206,-500.0,0.00010997,2]
[339479567,1727628658216,-668.63,0.00010997,2]
[339479568,1727628658225,-500.0,0.00010997,2]
[339479569,1727628658235,-733.33,0.00010997,2]